bitfinex-derivatives/quotes_BTCF0:USTF0_20250127
["timestamp","ask_amount","ask_price","bid_price","bid_amount"]
[1737973867502,0.201805,99150.0,99148.0,0.3959]
[1737973868303,0.201805,99150.0,99148.0,0.3949]
[1737973868901,0.201805,99150.0,99148.0,0.596708]
[1737973870307,0.201805,99150.0,99148.0,0.3949]
[1737973870604,0.201805,99150.0,99148.0,0.3959]
[1737973871306,0.201805,99150.0,99148.0,0.3949]
[1737973871503,0.201784,99161.0,99148.0,0.3949]
[1737973871700,0.201784,99161.0,99156.0,0.3608]
[1737973872006,0.2191,99169.0,99156.0,0.3608]
[1737973872196,0.37120124,99170.0,99156.0,0.3608]
[1737973872399,0.20179,99157.0,99156.0,0.3608]
[1737973872592,0.201803,99151.0,99150.0,0.3608]
[1737973874901,0.201803,99151.0,99150.0,0.3618]
[1737973875303,0.201803,99151.0,99150.0,0.001]
[1737973875909,0.201803,99151.0,99150.0,0.002]
[1737973876298,0.201803,99151.0,99150.0,0.001]
[1737973877206,0.21182137,99151.0,99150.0,0.001]
[1737973877405,0.21182137,99151.0,99147.0,0.00015126]
[1737973877406,0.01001837,99151.0,99147.0,0.00015126]
[1737973877607,0.201809,99148.0,99147.0,0.00015126]
[1737973879908,0.21311858,99148.0,99147.0,0.00015126]
[1737973882814,0.202809,99148.0,99147.0,0.00015126]
[1737973884111,0.201855,99125.0,99120.0,0.3608]
[1737973884711,0.201855,99125.0,99114.0,0.036]
[1737973885215,0.201855,99125.0,99115.0,0.00015126]
[1737973885509,0.20187,99118.0,99117.0,0.36226706]
[1737973887316,0.20187,99118.0,99117.0,0.36326706]
[1737973887618,0.20187,99118.0,99117.0,0.36426706]
[1737973888711,0.20187,99118.0,99117.0,0.002]
[1737973890110,0.21175459,99118.0,99117.0,0.002]
[1737973890314,0.201896,99105.0,99103.0,0.2413638]
[1737973890610,0.562696,99105.0,99103.0,0.2413638]
[1737973890809,0.101,99104.0,99103.0,0.2413638]
[1737973892420,0.11112901,99104.0,99103.0,0.2413638]
[1737973893724,0.11112901,99104.0,99100.0,0.1]
[1737973894217,0.050481,99091.0,99080.0,0.0349]
[1737973894432,0.201959,99074.0,99073.0,0.03411398]
[1737973895120,0.00015135,99083.0,99073.0,0.03411398]
[1737973895322,0.201943,99082.0,99079.0,0.3608]
[1737973895521,0.201946,99081.0,99079.0,0.3608]
[1737973897317,0.201959,99074.0,99073.0,0.03811398]
[1737973897519,0.201959,99074.0,99073.0,0.00151398]
[1737973898424,0.201966,99071.0,99069.0,0.3608]
[1737973900724,0.201966,99071.0,99069.0,0.3658]
[1737973901037,0.201966,99071.0,99069.0,0.3688]
[1737973901331,0.201966,99071.0,99070.0,0.00014739]
[1737973903444,0.201966,99071.0,99070.0,0.00314739]
[1737973904343,0.201966,99071.0,99070.0,0.00814739]
[1737973907044,0.21205208,99071.0,99070.0,0.00814739]
[1737973910651,0.57285208,99071.0,99070.0,0.00814739]
[1737973911442,0.050492,99070.0,99050.0,0.3608]
[1737973911643,0.202006,99051.0,99050.0,0.3608]
[1737973912244,0.202006,99051.0,99044.0,0.0658]
[1737973912549,0.202018,99045.0,99044.0,0.0323]
[1737973913442,0.202018,99045.0,99036.0,0.00987931]
[1737973913443,0.202035,99037.0,99036.0,0.00987931]
[1737973913636,0.202065,99022.0,99021.0,0.2413638]
[1737973913839,0.12390517,99031.0,99014.0,0.2413638]
[1737973913840,0.3608,99029.0,99014.0,0.2413638]
[1737973914039,0.202079,99015.0,99014.0,0.2413638]
[1737973914944,0.3608,99029.0,99014.0,0.2413638]
[1737973915150,0.202069,99021.0,99014.0,0.2413638]
[1737973915450,0.20205,99030.0,99014.0,0.4434438]
[1737973915644,0.00015142,99031.0,99014.0,0.4434438]
[1737973915645,0.202059,99025.0,99024.0,0.3608]
[1737973917443,0.202059,99025.0,99024.0,0.33050157]
[1737973917645,0.202059,99025.0,99024.0,0.33150157]
[1737973917848,0.202059,99025.0,99024.0,0.33250157]
[1737973918540,0.202059,99025.0,99024.0,0.002]
[1737973922148,0.01006711,99029.0,99002.0,0.3608]
[1737973922452,0.202104,99004.0,99002.0,0.3608]
[1737973922756,0.3608,99017.0,99002.0,0.3608]
[1737973922757,0.202088,99011.0,99004.0,0.2021]
[1737973923058,0.202096,99007.0,99005.0,0.234498]
[1737973923761,0.202104,99003.0,99002.0,0.3608]
[1737973924057,0.202104,99003.0,99002.0,0.3688]
[1737973924559,0.202104,99003.0,99002.0,0.3608]
[1737973925656,0.202104,99003.0,99002.0,0.3688]
[1737973926458,0.202104,99003.0,99002.0,0.3728]
[1737973928656,0.202104,99003.0,99002.0,0.39832226]
[1737973928846,0.202104,99003.0,99002.0,0.03752226]
[1737973929449,0.0325,99006.0,98992.0,0.00128]
[1737973929660,0.050531,98993.0,98972.0,0.0674]
[1737973929850,0.3608,98989.0,98972.0,0.0674]
[1737973930054,0.202162,98975.0,98972.0,0.269567]
[1737973930250,0.202162,98975.0,98973.0,0.202163]
[1737973931055,0.202165,98973.0,98972.0,0.0724]
[1737973931565,0.202165,98973.0,98972.0,0.014]
[1737973932148,0.21251975,98973.0,98972.0,0.005]
[1737973932859,0.21251975,98973.0,98962.0,0.0342]
[1737973932860,0.202185,98963.0,98962.0,0.0342]
[1737973933062,0.202193,98959.0,98947.0,0.202217]
[1737973933248,0.202193,98959.0,98950.0,0.0352]
[1737973933863,0.202193,98959.0,98943.0,0.3608]
[1737973934562,0.0353,98958.0,98957.0,0.2493638]
[1737973934772,0.0353,98958.0,98957.0,0.2523638]
[1737973935256,0.001,98959.0,98957.0,0.2523638]
[1737973935758,0.00991309,98976.0,98958.0,0.4295]
[1737973935959,0.202154,98979.0,98960.0,0.12390517]
[1737973936160,0.3608,98986.0,98981.0,0.202147]
[1737973936358,0.202112,99000.0,98982.0,0.0354]
[1737973936564,0.0353,99019.0,98982.0,0.4305]
[1737973936758,0.01036083,99019.0,99002.0,0.3608]
[1737973936958,0.3608,99023.0,99014.0,0.202081]
[1737973937156,0.202082,99014.0,99007.0,0.202095]
[1737973937354,0.202082,99014.0,99008.0,0.202093]
[1737973937557,0.202082,99014.0,99009.0,0.20209]
[1737973937761,0.12390517,99020.0,99009.0,0.20209]
[1737973937962,0.09041239,99015.0,99003.0,0.0357]
[1737973938461,0.202101,99005.0,99002.0,0.3608]
[1737973938864,0.202104,99003.0,99002.0,0.3608]
[1737973941771,0.202104,99003.0,99002.0,0.3618]
[1737973941969,0.202104,99003.0,99002.0,0.001]
[1737973942178,0.862904,99003.0,99001.0,5.1e-07]
[1737973942464,0.050527,99001.0,98962.0,0.3608]
[1737973942670,0.202184,98964.0,98963.0,0.035]
[1737973943765,0.48485668,98973.0,98956.0,0.0699]
[1737973943977,0.202197,98957.0,98956.0,0.0699]
[1737973944860,0.36151152,98973.0,98956.0,0.0699]
[1737973945060,0.20231651,98973.0,98972.0,0.3608]
[1737973945269,0.00015151,98973.0,98972.0,0.3608]
[1737973945469,0.00015151,98973.0,98972.0,0.3955]
[1737973946167,0.00115151,98973.0,98972.0,0.4035]
[1737973947663,0.00115151,98973.0,98972.0,0.4045]
[1737973947971,0.00015151,98973.0,98972.0,0.4005]
[1737973948480,0.00015151,98973.0,98972.0,0.3955]
[1737973948669,0.00015151,98973.0,98972.0,0.3995]
[1737973949375,0.00015151,98973.0,98972.0,0.3985]
[1737973949779,0.00015151,98973.0,98972.0,0.3965]
[1737973949975,0.00015151,98973.0,98972.0,0.3975]
[1737973950776,0.20231651,98973.0,98972.0,0.3975]
[1737973951178,0.20231651,98973.0,98972.0,0.3618]
[1737973951670,0.00015151,98973.0,98972.0,0.3628]
[1737973951977,0.00015151,98973.0,98972.0,0.002]
[1737973952176,0.00015151,98973.0,98972.0,0.001]
[1737973952376,0.00015151,98973.0,98971.0,0.202168]
[1737973952977,0.00015151,98973.0,98972.0,0.001]
[1737973953668,0.20231551,98973.0,98972.0,0.001]
[1737973954979,0.20231551,98973.0,98972.0,0.002]
[1737973955176,0.00015151,98973.0,98972.0,0.001]
[1737973955882,0.00115151,98973.0,98971.0,0.202168]
[1737973956083,0.0336,99001.0,98997.0,0.202115]
[1737973956280,0.3608,99018.0,98997.0,0.3608]
[1737973956585,0.202088,99011.0,99003.0,0.202102]
[1737973956781,0.202091,99010.0,99003.0,0.202102]
[1737973956979,0.0334,99017.0,98998.0,0.0353]
[1737973957277,0.0334,99017.0,98998.0,0.00015151]
[1737973957278,0.3608,99009.0,98998.0,0.00015151]
[1737973957481,0.562911,98999.0,98998.0,0.00015151]
[1737973958581,0.15026714,99004.0,98998.0,0.00015151]
[1737973958885,0.15026714,99004.0,99002.0,0.202103]
[1737973959794,0.15026714,99004.0,99003.0,0.0673]
[1737973960095,0.15426714,99004.0,99003.0,0.0673]
[1737973960674,0.18032057,99013.0,99012.0,0.202085]
[1737973960874,0.00315151,99017.0,99016.0,0.202076]
[1737973961074,0.00015151,99017.0,99016.0,0.202076]
[1737973961486,0.412419,99032.0,99012.0,0.72292]
[1737973961786,0.202058,99026.0,99024.0,0.3608]
[1737973961985,0.202058,99026.0,99012.0,0.3608]
[1737973961986,0.003,99013.0,99012.0,0.3608]
[1737973962377,0.003,99013.0,98994.0,0.562921]
[1737973962378,0.202106,99002.0,98994.0,0.562921]
[1737973962578,0.202109,99001.0,98994.0,0.562921]
[1737973962782,0.202109,99001.0,98996.0,0.00015151]
[1737973962978,0.202109,99001.0,98996.0,0.20226751]
[1737973963386,0.39892001,99013.0,98998.0,0.24142097]
[1737973963686,0.202094,99008.0,99003.0,0.3608]
[1737973964187,0.03520001,99013.0,99003.0,0.3608]
[1737973964188,0.2021,99005.0,99003.0,0.3608]
[1737973965784,0.0325,99004.0,99003.0,0.3608]
[1737973966288,0.2021,99005.0,99003.0,0.3618]
[1737973967885,0.2051,99005.0,99003.0,0.3608]
[1737973968375,0.2021,99005.0,99003.0,0.3608]
[1737973971777,0.2021,99005.0,98997.0,0.18101784]
[1737973971985,0.202113,98998.0,98997.0,0.18101784]
[1737973972685,0.237313,98998.0,98997.0,0.18101784]
[1737973974184,0.24378693,98998.0,98997.0,0.18101784]
[1737973974585,0.24578693,98998.0,98997.0,0.18101784]
[1737973974785,0.24978693,98998.0,98996.0,0.00015151]
[1737973974985,0.0344,98997.0,98996.0,0.00015151]
[1737973976495,0.0354,98997.0,98996.0,0.00015151]
[1737973977293,0.0354,98997.0,98972.0,0.54181784]
[1737973977491,0.202164,98973.0,98972.0,0.54181784]
[1737973978982,0.202164,98973.0,98972.0,0.54581784]
[1737973979590,0.202164,98973.0,98972.0,0.54681784]
[1737973980786,0.202164,98973.0,98972.0,0.54281784]
[1737973981402,0.202164,98973.0,98972.0,0.74398384]
[1737973981798,0.202164,98973.0,98972.0,0.562966]
[1737973982492,0.202164,98973.0,98972.0,0.563966]
[1737973982692,0.00015151,98982.0,98972.0,0.3618]
[1737973982998,0.00015151,98982.0,98981.0,0.562948]
[1737973983395,0.09030357,98998.0,98992.0,0.202124]
[1737973983396,0.202124,98993.0,98992.0,0.202124]
[1737973983698,0.202123,98993.0,98992.0,0.3608]
[1737973984906,0.09030357,98998.0,98992.0,0.3608]
[1737973985102,0.202111,99000.0,98999.0,0.202111]
[1737973985496,0.00015151,99002.0,98999.0,0.20211]
[1737973985697,0.00015151,99002.0,99000.0,0.3608]
[1737973986001,0.00015151,99002.0,99000.0,0.562909]
[1737973989903,0.00015151,99002.0,98994.0,0.24142097]
[1737973990100,0.202119,98995.0,98994.0,0.24142097]
[1737973992393,0.202119,98995.0,98994.0,0.002]
[1737973993006,0.202123,98994.0,98992.0,0.3608]
[1737973993200,0.3608,98998.0,98994.0,0.001]
[1737973993406,0.202119,98995.0,98994.0,0.001]
[1737973994308,0.202127,98991.0,98990.0,0.18120203]
[1737973995306,0.00636325,98995.0,98983.0,0.00015151]
[1737973995506,0.202142,98984.0,98983.0,0.00015151]
[1737973998205,0.202142,98984.0,98983.0,0.00115151]
[1737973998399,0.3608,98986.0,98977.0,0.22871096]
[1737973998594,0.562954,98978.0,98977.0,0.22871096]
[1737973999011,0.562954,98978.0,98970.0,0.30177621]
[1737973999012,0.202168,98971.0,98970.0,0.30177621]
[1737974000207,0.202168,98971.0,98970.0,0.26525673]
[1737974000407,0.202181,98965.0,98964.0,0.36213145]
[1737974001504,0.00652677,98971.0,98968.0,0.202173]
[1737974001713,0.202168,98972.0,98969.0,0.036]
[1737974002603,0.36095151,98980.0,98969.0,0.036]
[1737974002803,0.56310251,98980.0,98970.0,0.12479911]
[1737974003003,0.56310251,98980.0,98974.0,0.202161]
[1737974003202,0.20230251,98980.0,98975.0,0.202159]
[1737974003515,0.00015151,98980.0,98978.0,0.202153]
[1737974003811,0.36132001,99000.0,98997.0,0.202114]
[1737974004016,0.3608,99000.0,98997.0,0.202114]
[1737974004207,0.202111,98999.0,98998.0,0.034]
[1737974006207,0.202111,98999.0,98998.0,0.001]
[1737974007808,0.12040476,99001.0,98998.0,0.001]
[1737974008010,0.202109,99000.0,98998.0,0.001]
[1737974009011,0.12040476,99001.0,98995.0,0.3608]
[1737974009218,0.202117,98997.0,98995.0,0.3608]
[1737974011413,0.202117,98997.0,98995.0,0.3618]
[1737974011914,0.202117,98997.0,98995.0,0.3608]
[1737974012118,0.206117,98997.0,98995.0,0.3608]
[1737974012516,0.004,98997.0,98976.0,0.3608]
[1737974012822,0.202129,98990.0,98976.0,0.3608]
[1737974013023,0.202129,98990.0,98989.0,5.1e-07]
[1737974013329,0.202211,98950.0,98949.0,0.0357]
[1737974013617,0.202211,98950.0,98946.0,0.3608]
[1737974013812,0.202217,98947.0,98946.0,0.3608]
[1737974015116,0.001,98947.0,98946.0,0.572019]
[1737974015323,0.00015159,98956.0,98946.0,0.3698]
[1737974015518,0.00015159,98956.0,98954.0,0.3608]
[1737974016219,0.202175,98968.0,98954.0,0.3608]
[1737974016426,0.3608,98991.0,98966.0,0.3608]
[1737974016719,0.202142,98984.0,98980.0,0.18712307]
[1737974016919,0.202142,98984.0,98982.0,0.202145]
[1737974017424,0.202145,98983.0,98981.0,0.0342]
[1737974018117,0.00015159,98993.0,98982.0,0.001]
[1737974018317,0.202142,98984.0,98982.0,0.001]
[1737974018509,0.202142,98984.0,98982.0,0.203144]
[1737974018713,0.202142,98984.0,98982.0,0.202144]
[1737974019213,0.12040476,98985.0,98984.0,0.202142]
[1737974019415,0.12040476,98985.0,98984.0,0.562942]
[1737974021125,0.12040476,98985.0,98984.0,0.564942]
[1737974021617,0.12040476,98985.0,98984.0,0.56662631]
[1737974021821,0.12040476,98985.0,98984.0,0.56462631]
[1737974022031,0.12040476,98985.0,98984.0,0.56562631]
[1737974022327,0.001,98985.0,98984.0,0.56562631]
[1737974022727,0.001,98985.0,98984.0,0.36348431]
[1737974022928,0.202138,98986.0,98984.0,0.00268431]
[1737974023520,0.202138,98986.0,98985.0,0.00168431]
[1737974029536,0.202162,98974.0,98973.0,0.00015159]
[1737974029728,0.562962,98974.0,98973.0,0.00015159]
[1737974032719,0.57064081,98974.0,98973.0,0.00015159]
[1737974033232,0.36847881,98974.0,98962.0,0.3608]
[1737974033422,0.202223,98944.0,98931.0,0.3608]
[1737974033623,0.202223,98945.0,98939.0,0.563033]
[1737974033930,0.3608,98945.0,98929.0,0.30201606]
[1737974034237,0.202242,98935.0,98930.0,0.18712307]
[1737974034527,0.202242,98935.0,98934.0,0.0105161]
[1737974034828,0.202242,98935.0,98934.0,0.0771161]
[1737974035228,0.202242,98935.0,98934.0,0.0701161]
[1737974035728,0.36848505,98945.0,98934.0,0.0711161]
[1737974035936,0.202229,98942.0,98934.0,0.0711161]
[1737974036225,0.202229,98942.0,98935.0,0.202241]
[1737974036622,0.202229,98942.0,98934.0,0.1039161]
[1737974036833,0.202229,98942.0,98938.0,0.202235]
[1737974037332,0.202229,98942.0,98934.0,0.1039161]
[1737974037333,0.202235,98939.0,98934.0,0.1039161]
[1737974037630,0.563021,98945.0,98935.0,0.002]
[1737974037823,0.00015159,98949.0,98935.0,0.002]
[1737974038027,0.00015159,98949.0,98947.0,0.202217]
[1737974038832,0.20236559,98949.0,98947.0,0.202217]
[1737974039235,0.00015159,98949.0,98943.0,0.3608]
[1737974039436,0.00115159,98949.0,98935.0,0.004]
[1737974039631,0.202225,98944.0,98941.0,0.202229]
[1737974040030,0.202226,98943.0,98941.0,0.202229]
[1737974041038,0.00115159,98949.0,98935.0,0.004]
[1737974041242,0.202242,98935.0,98934.0,0.1009161]
[1737974041730,0.202242,98935.0,98934.0,0.0341161]
[1737974042739,0.202242,98935.0,98934.0,0.0361161]
[1737974043247,0.00015159,98949.0,98934.0,0.0371161]
[1737974043538,0.00015159,98949.0,98937.0,0.202237]
[1737974043839,0.202232,98940.0,98937.0,0.202237]
[1737974044026,0.00015159,98949.0,98934.0,0.0371161]
[1737974044233,0.202222,98945.0,98944.0,0.202219]
[1737974044742,0.202222,98945.0,98903.0,0.3608]
[1737974044743,0.050555,98945.0,98903.0,0.3608]
[1737974044937,0.12487361,98930.0,98913.0,0.3608]
[1737974045135,0.3608,98935.0,98913.0,0.3608]
[1737974045448,0.202263,98925.0,98923.0,0.3608]
[1737974045829,0.202282,98916.0,98909.0,0.202293]
[1737974046026,0.3608,98927.0,98906.0,0.0994]
[1737974046445,0.202297,98908.0,98906.0,0.0994]
[1737974047839,0.00015159,98926.0,98906.0,0.0994]
[1737974048041,0.202285,98914.0,98912.0,0.3608]
[1737974049538,0.202285,98914.0,98912.0,0.3618]
[1737974049738,0.202285,98914.0,98912.0,0.3658]
[1737974051239,0.00015159,98926.0,98912.0,0.3658]
[1737974051444,0.20241359,98926.0,98920.0,0.3608]
[1737974052146,0.20241359,98926.0,98924.0,0.202264]
[1737974052543,0.00015159,98926.0,98920.0,0.3608]
[1737974052840,0.202287,98913.0,98912.0,0.57430357]
[1737974053046,0.202287,98913.0,98912.0,0.3628]
[1737974053246,0.00015159,98926.0,98907.0,0.202299]
[1737974053548,0.202299,98907.0,98904.0,0.202305]
[1737974054749,0.202299,98907.0,98900.0,0.1]
[1737974055044,0.202299,98907.0,98904.0,0.202304]
[1737974055851,0.20229,98912.0,98910.0,0.202292]
[1737974057163,0.00797777,98924.0,98910.0,0.007]
[1737974057359,0.00015159,98926.0,98913.0,0.202286]
[1737974057563,0.3608,98916.0,98910.0,0.007]
[1737974057751,0.202291,98911.0,98900.0,0.1]
[1737974057956,0.202344,98885.0,98884.0,0.0325]
[1737974058955,0.3608,98889.0,98877.0,0.30201606]
[1737974059161,0.202358,98878.0,98877.0,0.30201606]
[1737974059556,0.20216095,98878.0,98877.0,0.30201606]
[1737974061859,0.21113082,98878.0,98877.0,0.31001606]
[1737974062165,0.202383,98866.0,98865.0,0.36197048]
[1737974062354,0.563183,98866.0,98865.0,0.36197048]
[1737974062963,0.563183,98866.0,98865.0,0.37778652]
[1737974063362,0.563183,98866.0,98865.0,0.3307985]
[1737974063563,0.563183,98866.0,98865.0,0.3327985]
[1737974063758,0.564183,98866.0,98865.0,0.3377985]
[1737974064166,0.564183,98866.0,98865.0,0.02281604]
[1737974064668,0.57189771,98866.0,98865.0,0.02281604]
[1737974065058,0.202424,98846.0,98835.0,0.3608]
[1737974065265,0.202424,98846.0,98836.0,0.0333]
[1737974066568,0.203424,98846.0,98836.0,0.0373]
[1737974067473,0.202429,98844.0,98836.0,0.0373]
[1737974068175,0.202429,98844.0,98836.0,0.0403]
[1737974068376,0.3618,98846.0,98836.0,0.0403]
[1737974068568,0.202432,98843.0,98836.0,0.0363]
[1737974068773,0.202432,98843.0,98836.0,0.0373]
[1737974068971,0.202442,98838.0,98836.0,0.0353]
[1737974069171,0.202442,98838.0,98836.0,0.002]
[1737974069667,0.00776929,98843.0,98836.0,0.002]
[1737974069873,0.001,98843.0,98836.0,0.002]
[1737974070073,0.001,98843.0,98837.0,0.3608]
[1737974070470,0.00015176,98850.0,98847.0,0.202422]
[1737974070664,0.00015176,98850.0,98848.0,0.0345]
[1737974072779,0.00015176,98850.0,98848.0,0.0355]
[1737974073481,0.00015176,98850.0,98848.0,0.237919]
[1737974073672,0.00015176,98850.0,98849.0,0.0346]
[1737974074784,0.202378,98869.0,98860.0,0.202393]
[1737974074968,0.202378,98869.0,98861.0,0.0353]
[1737974075475,0.202378,98869.0,98862.0,0.202391]
[1737974075980,0.202381,98867.0,98862.0,0.202391]
[1737974076173,0.202381,98867.0,98861.0,0.0353]
[1737974076174,0.005,98869.0,98861.0,0.0353]
[1737974076374,0.202389,98864.0,98861.0,0.0353]
[1737974076580,0.202391,98862.0,98861.0,0.0353]
[1737974077179,0.3608,98862.0,98856.0,0.00015176]
[1737974077380,0.202432,98842.0,98841.0,0.0355]
[1737974078275,0.3608,98844.0,98830.0,0.07]
[1737974078476,0.202454,98832.0,98830.0,0.1055]
[1737974079784,0.203454,98832.0,98830.0,0.1075]
[1737974081484,0.203454,98832.0,98830.0,0.1095]
[1737974081485,0.001,98832.0,98830.0,0.1095]
[1737974081677,0.202455,98832.0,98830.0,0.1095]
[1737974082986,0.202455,98832.0,98830.0,0.0728]
[1737974083178,0.202455,98832.0,98830.0,0.002]
[1737974086788,0.0900898,98839.0,98831.0,0.3608]
[1737974087092,0.12040476,98833.0,98832.0,0.202453]
[1737974087291,0.01920476,98833.0,98832.0,0.202453]
[1737974088289,0.01920476,98833.0,98832.0,0.203453]
[1737974089379,0.22165576,98833.0,98832.0,0.001]
[1737974089789,0.202451,98833.0,98832.0,0.001]
[1737974091392,0.3608,98840.0,98832.0,0.203452]
[1737974092289,0.202437,98840.0,98836.0,0.3608]
[1737974092490,0.202437,98840.0,98837.0,0.0652]
[1737974092686,0.202437,98840.0,98838.0,0.202439]
[1737974092881,0.00859675,98847.0,98837.0,0.0973]
[1737974093084,0.3608,98848.0,98841.0,0.202434]
[1737974093281,0.202427,98845.0,98841.0,0.202434]
[1737974093590,0.20243,98844.0,98841.0,0.202434]
[1737974094401,0.001,98840.0,98837.0,0.0973]
[1737974094585,0.001,98840.0,98838.0,0.20244]
[1737974095092,0.002,98840.0,98838.0,0.20244]
[1737974095293,0.001,98840.0,98838.0,0.20244]
[1737974095685,0.001,98844.0,98837.0,0.0973]
[1737974095991,0.001,98844.0,98841.0,0.202434]
[1737974096192,0.202426,98846.0,98841.0,0.202434]
[1737974096794,0.202426,98846.0,98837.0,0.0973]
[1737974096795,0.202426,98846.0,98842.0,0.202431]
[1737974097798,0.001,98844.0,98842.0,0.202431]
[1737974098095,0.20343,98844.0,98842.0,0.202431]
[1737974098988,0.20443,98844.0,98842.0,0.202431]
[1737974099196,0.20743,98844.0,98842.0,0.202431]
[1737974099690,0.005,98844.0,98842.0,0.202431]
[1737974100593,0.207428,98844.0,98842.0,0.202431]
[1737974100993,0.20244,98838.0,98837.0,0.0652]
[1737974101692,0.3658,98844.0,98807.0,0.3608]
[1737974101883,0.202471,98823.0,98807.0,0.3927]
[1737974102196,0.3608,98831.0,98807.0,0.3927]
[1737974102492,0.0331,98837.0,98820.0,0.12512891]
[1737974102493,0.00015176,98825.0,98820.0,0.12512891]
[1737974102691,0.00015176,98825.0,98824.0,0.202469]
[1737974103292,0.202474,98822.0,98821.0,0.202472]
[1737974103891,0.00015176,98825.0,98824.0,0.202469]
[1737974104288,0.00015176,98825.0,98817.0,0.3608]
[1737974104493,0.202472,98823.0,98817.0,0.563283]
[1737974104690,0.202472,98823.0,98818.0,0.202481]
[1737974104889,0.202475,98821.0,98819.0,0.202478]
[1737974106099,0.001,98823.0,98818.0,0.002]
[1737974106100,0.202479,98819.0,98818.0,0.002]
[1737974107197,0.0627,98822.0,98801.0,0.3608]
[1737974107403,0.202514,98802.0,98801.0,0.3608]
[1737974107892,0.00052001,98814.0,98801.0,0.3608]
[1737974108204,0.00015176,98825.0,98822.0,0.202473]
[1737974108397,0.00015176,98825.0,98822.0,0.563273]
[1737974108598,0.00015176,98825.0,98822.0,0.3608]
[1737974108900,0.00015176,98825.0,98823.0,0.202469]
[1737974109096,0.00015176,98825.0,98824.0,0.0313]
[1737974110996,0.00015176,98825.0,98824.0,0.0323]
[1737974111589,0.00015176,98825.0,98824.0,0.001]
[1737974111788,0.20261976,98825.0,98823.0,0.202469]
[1737974111995,0.20261976,98825.0,98824.0,0.001]
[1737974112590,0.202494,98812.0,98800.0,0.1]
[1737974112815,0.3608,98817.0,98800.0,0.1]
[1737974113002,0.202516,98801.0,98800.0,0.1]
[1737974114690,0.202516,98801.0,98800.0,0.102]
[1737974115997,0.203516,98801.0,98800.0,0.102]
[1737974116498,0.203516,98801.0,98797.0,0.3608]
[1737974116499,0.202522,98798.0,98797.0,0.3608]
[1737974117497,0.202546,98787.0,98783.0,0.202551]
[1737974117895,0.202529,98795.0,98790.0,0.202538]
[1737974118097,0.202529,98795.0,98780.0,0.12512891]
[1737974118098,0.00015184,98795.0,98794.0,0.202531]
[1737974119504,0.00115184,98795.0,98794.0,0.202531]
[1737974120003,0.00115184,98795.0,98790.0,0.0978]
[1737974120004,0.3608,98834.0,98793.0,0.3608]
[1737974120314,0.20247,98824.0,98816.0,0.202485]
[1737974120497,0.15026851,98821.0,98816.0,0.202485]
[1737974121309,0.202479,98820.0,98816.0,0.202485]
[1737974121504,0.3608,98817.0,98807.0,0.00015184]
[1737974121711,0.563302,98808.0,98807.0,0.00015184]
[1737974123612,0.202557,98781.0,98769.0,0.20258]
[1737974123903,0.202557,98781.0,98766.0,0.3608]
[1737974123904,0.20255,98785.0,98770.0,0.18786766]
[1737974124102,0.20255,98785.0,98779.0,0.202559]
[1737974124315,0.202552,98784.0,98779.0,0.202559]
[1737974124501,0.202552,98784.0,98780.0,0.202557]
[1737974124702,0.3608,98787.0,98776.0,0.0671]
[1737974125011,0.202548,98786.0,98783.0,0.202551]
[1737974125503,0.202548,98786.0,98784.0,0.20255]
[1737974125698,0.202548,98786.0,98776.0,0.0671]
[1737974125699,0.3608,98787.0,98786.0,0.202547]
[1737974125899,0.00015184,98792.0,98790.0,0.202538]
[1737974127415,0.202536,98791.0,98790.0,0.202538]
[1737974127912,0.00015184,98792.0,98783.0,0.563352]
[1737974128102,0.202547,98786.0,98783.0,0.563352]
[1737974129599,0.202551,98784.0,98783.0,0.3608]
[1737974131109,0.203551,98784.0,98783.0,0.3608]
[1737974132413,0.001,98784.0,98783.0,0.3608]
[1737974135513,0.0317,98784.0,98783.0,0.3608]
[1737974136413,0.0317,98784.0,98780.0,0.202558]
[1737974137310,0.0317,98784.0,98770.0,0.18786766]
[1737974137513,0.202564,98778.0,98766.0,0.033]
[1737974138108,0.202564,98778.0,98768.0,0.18786766]
[1737974138408,0.23409734,98784.0,98781.0,0.202556]
[1737974139008,0.203552,98784.0,98781.0,0.202556]
[1737974139205,0.203552,98784.0,98782.0,0.202553]
[1737974139909,0.202556,98782.0,98775.0,0.202568]
[1737974140108,0.202556,98782.0,98769.0,0.202581]
[1737974140305,0.202556,98782.0,98777.0,0.202564]
[1737974140512,0.001,98778.0,98769.0,0.202582]
[1737974140709,0.001,98778.0,98776.0,0.202565]
[1737974141122,0.20256,98780.0,98768.0,0.18786766]
[1737974141305,0.20256,98780.0,98778.0,0.202562]
[1737974141505,0.001,98782.0,98781.0,0.202557]
[1737974141908,0.202525,98797.0,98791.0,0.202536]
[1737974142111,0.202527,98796.0,98791.0,0.202536]
[1737974142723,0.3608,98813.0,98791.0,0.202536]
[1737974143018,0.563323,98798.0,98791.0,0.202536]
[1737974143319,0.56384301,98798.0,98791.0,0.202536]
[1737974144819,0.36132001,98798.0,98791.0,0.202536]
[1737974145020,0.3608,98813.0,98789.0,0.3608]
[1737974145327,0.15026851,98815.0,98804.0,0.202509]
[1737974145510,0.202499,98810.0,98805.0,0.0323]
[1737974145819,0.202511,98804.0,98799.0,0.202519]
[1737974146022,0.202514,98803.0,98799.0,0.202519]
[1737974146211,0.3608,98804.0,98792.0,0.20268584]
[1737974146410,0.563327,98796.0,98792.0,0.20268584]
[1737974146610,0.202532,98793.0,98792.0,0.00015184]
[1737974147422,0.23289852,98793.0,98792.0,0.00015184]
[1737974148017,0.23489852,98793.0,98792.0,0.00015184]
[1737974149416,0.03236652,98793.0,98760.0,0.12524094]
[1737974149729,0.3608,98767.0,98760.0,0.12524094]
[1737974149920,0.3608,98767.0,98765.0,0.202589]